bitfinex/quotes_SOLUSD_20251204
["timestamp","ask_amount","ask_price","bid_price","bid_amount"]
[1764818841174,0.69,144.87,144.83,0.65]
[1764818841587,7.59283477,144.87,144.83,3.21254977]
[1764818841780,0.69,144.87,144.83,12.10693571]
[1764818842185,18.87141377,144.88,144.83,19.01148448]
[1764818842186,0.69,144.86,144.83,19.01148448]
[1764818842585,0.69,144.86,144.83,16.44893471]
[1764818844788,0.69,144.92,144.85,2.56254977]
[1764818844973,0.69,144.92,144.87,2.56254977]
[1764818845181,0.69,144.92,144.88,2.56254977]
[1764818845401,7.59035881,144.92,144.89,2.56254977]
[1764818845595,19.81016054,144.95,144.9,2.56254977]
[1764818845802,6.8995329,144.94,144.9,2.56254977]
[1764818846005,7.5895329,144.94,144.9,3.21254977]
[1764818846204,0.69,144.93,144.9,3.21254977]
[1764818846495,0.69,144.94,144.91,2.56254977]
[1764818847799,7.58952481,144.94,144.9,2.56254977]
[1764818848203,0.69,144.93,144.9,2.56254977]
[1764818848402,0.69,144.93,144.9,3.21254977]
[1764818848603,3.25254977,144.93,144.88,2.56254977]
[1764818848902,2.56254977,144.92,144.88,7.62]
[1764818849103,0.69,144.92,144.88,10.18254977]
[1764818849299,0.69,144.91,144.88,10.18254977]
[1764818850103,0.69,144.91,144.88,7.62]
[1764818850293,0.69,144.91,144.88,10.18254977]
[1764818852706,2.56254977,144.9,144.86,7.62]
[1764818853205,0.69,144.89,144.86,7.62]
[1764818853500,0.69,144.89,144.86,10.18254977]
[1764818853703,3.25254977,144.89,144.84,12.1618246]
[1764818853910,6.90226394,144.88,144.84,17.21927483]
[1764818854103,7.59226394,144.88,144.84,17.21927483]
[1764818854307,0.69,144.87,144.84,17.21927483]
[1764818856018,7.59288871,144.87,144.84,17.21927483]
[1764818856417,7.59235174,144.88,144.84,20.4318246]
[1764818856594,0.69,144.87,144.84,20.4318246]
[1764818857501,6.90235174,144.88,144.85,2.56254977]
[1764818857820,16.308864,144.93,144.85,3.21254977]
[1764818858004,6.90131124,144.9,144.86,3.21254977]
[1764818858408,0.69,144.89,144.86,3.21254977]
[1764818860015,7.59195491,144.89,144.86,0.65]
[1764818860204,10.15450468,144.89,144.85,9.59927483]
[1764818860403,0.66,144.88,144.85,9.59927483]
[1764818862908,2.56254977,144.87,144.84,7.62]
[1764818863107,0.67,144.86,144.84,7.62]
[1764818866524,7.57338148,144.86,144.82,2.56254977]
[1764818866708,7.57338148,144.86,144.81,16.50475737]
[1764818866709,2.56254977,144.85,144.81,17.21927483]
[1764818866908,3.23254977,144.85,144.81,17.21927483]
[1764818867210,0.67,144.84,144.81,17.21927483]
[1764818867410,0.67,144.84,144.81,19.7818246]
[1764818868131,0.67,144.84,144.81,20.5018246]
[1764818868622,0.67,144.84,144.81,17.93927483]
[1764818868828,0.67,144.84,144.81,20.5018246]
[1764818870111,7.57443305,144.84,144.81,20.5018246]
[1764818872123,0.67,144.84,144.81,27.40733445]
[1764818877335,0.67,144.86,144.82,3.28254977]
[1764818877523,0.67,144.85,144.82,12.8818246]
[1764818878533,6.90274038,144.87,144.82,19.06658066]
[1764818878832,0.67,144.86,144.83,0.72]
[1764818879040,0.67,144.86,144.82,19.78658066]
[1764818879247,2.56254977,144.85,144.82,9.59927483]
[1764818879431,3.23254977,144.86,144.82,9.59927483]
[1764818879740,0.67,144.86,144.83,2.56254977]
[1764818880034,0.67,144.85,144.82,9.59927483]
[1764818880438,6.90274038,144.87,144.83,2.56254977]
[1764818880733,6.90274038,144.87,144.82,9.59927483]
[1764818880734,7.57376025,144.85,144.82,9.59927483]
[1764818881234,0.67,144.84,144.82,9.59927483]
[1764818882018,6.90321689,144.86,144.82,9.59927483]
[1764818882218,0.67,144.85,144.82,10.31927483]
[1764818882735,0.67,144.85,144.82,9.59927483]
[1764818884420,0.67,144.85,144.82,10.31927483]
[1764818884615,16.308864,144.88,144.82,10.31927483]
[1764818884616,16.308864,144.88,144.84,4.00436582]
[1764818884818,0.67,144.9,144.87,4.00436582]
[1764818886341,0.67,144.9,144.86,4.72436582]
[1764818886943,7.57160856,144.9,144.86,4.72436582]
[1764818887120,7.57160856,144.9,144.87,4.00436582]
[1764818889944,7.57160856,144.9,144.86,0.72]
[1764818890144,0.67,144.89,144.86,4.72436582]
[1764818890438,0.67,144.89,144.86,4.00436582]
[1764818892320,0.67,144.89,144.86,4.72436582]
[1764818893429,6.90160856,144.9,144.88,4.00436582]
[1764818893744,0.69,144.91,144.89,4.00436582]
[1764818895145,0.69,144.91,144.88,7.62]
[1764818895146,7.59098178,144.91,144.88,11.62436582]
[1764818895821,7.59098178,144.91,144.89,4.00436582]
[1764818896343,0.69,144.91,144.89,4.00436582]
[1764818900843,7.59033559,144.93,144.89,4.71436582]
[1764818901046,0.69,144.92,144.89,4.71436582]
[1764818901261,0.69,144.92,144.89,4.00436582]
[1764818901542,7.59072556,144.92,144.88,7.62]
[1764818901748,4.00436582,144.89,144.84,4.00436582]
[1764818902256,0.69,144.88,144.84,4.71436582]
[1764818902547,0.69,144.88,144.84,0.71]
[1764818902848,4.00436582,144.87,144.83,7.6]
[1764818903230,11.59758271,144.86,144.83,7.6]
[1764818903738,0.69,144.85,144.83,7.6]
[1764818904574,7.59372612,144.85,144.83,7.6]
[1764818905340,6.90372612,144.85,144.83,7.6]
[1764818906246,0.69,144.85,144.83,7.6]
[1764818906422,6.90321689,144.86,144.83,7.6]
[1764818906625,7.59321689,144.86,144.83,7.6]
[1764818907447,0.69,144.85,144.83,7.6]
[1764818907653,7.59321689,144.86,144.83,7.6]
[1764818910356,4.69436582,144.88,144.84,0.71]
[1764818910534,20.31322982,144.89,144.85,4.00436582]
[1764818910733,0.69,144.87,144.85,4.00436582]
[1764818910950,0.69,144.88,144.85,4.00436582]
[1764818911452,7.59239316,144.88,144.85,4.71436582]
[1764818911854,0.69,144.9,144.86,11.62436582]
[1764818912157,17.25114125,144.92,144.88,4.00436582]
[1764818912336,7.59035881,144.92,144.89,11.62436582]
[1764818912650,0.69,144.91,144.89,11.62436582]
[1764818913741,6.90035881,144.92,144.89,11.62436582]
[1764818913934,0.69,144.91,144.89,11.62436582]
[1764818914251,0.69,144.91,144.89,7.62]
[1764818917466,6.90035881,144.92,144.89,11.62436582]
[1764818917655,0.69,144.92,144.9,4.00436582]
[1764818918168,6.89951897,144.94,144.9,4.00436582]
[1764818918349,0.69,144.93,144.9,4.00436582]
[1764818918756,0.69,144.93,144.91,4.00436582]
[1764818919064,7.58951897,144.94,144.91,4.00436582]
[1764818919446,6.89893066,144.95,144.91,4.00436582]
[1764818919645,0.68,144.93,144.91,4.00436582]
[1764818920172,0.68,144.93,144.9,4.00436582]
[1764818920760,0.68,144.93,144.9,4.67436582]
[1764818922474,6.89954973,144.94,144.91,4.00436582]
[1764818922670,0.71,144.94,144.91,4.68436582]
[1764818922972,7.60849155,144.96,144.92,12.28436582]
[1764818923468,0.71,144.95,144.92,11.60436582]
[1764818923850,0.71,144.95,144.92,7.6]
[1764818924468,4.71436582,144.95,144.92,7.6]
[1764818924877,7.60940665,144.94,144.92,7.6]
[1764818926485,7.60940665,144.94,144.91,4.00436582]
[1764818928684,0.71,144.93,144.91,4.00436582]
[1764818929174,4.71436582,144.93,144.88,4.00436582]
[1764818929364,4.71436582,144.93,144.88,11.60436582]
[1764818929678,0.71,144.92,144.88,11.60436582]
[1764818930582,6.900835,144.91,144.88,11.60436582]
[1764818931077,0.71,144.9,144.88,11.60436582]
[1764818931481,7.61037565,144.92,144.89,4.00436582]
[1764818931682,7.61037565,144.92,144.9,4.00436582]
[1764818932055,0.71,144.91,144.88,7.6]
[1764818932262,0.71,144.91,144.89,4.00436582]
[1764818933149,7.61103375,144.91,144.89,4.00436582]
[1764818934378,0.71,144.9,144.88,11.60436582]
[1764818934963,0.71,144.9,144.88,7.6]
[1764818935164,0.71,144.9,144.86,11.60436582]
[1764818936382,6.90178756,144.89,144.86,11.60436582]
[1764818937083,7.61178756,144.89,144.86,11.60436582]
[1764818937378,0.71,144.89,144.87,4.00436582]
[1764818938263,7.61144296,144.9,144.87,4.00436582]
[1764818938876,0.71,144.89,144.87,4.00436582]
[1764818939060,6.90144296,144.9,144.87,4.00436582]
[1764818939265,7.61144296,144.9,144.88,4.00436582]
[1764818939466,7.61144296,144.9,144.87,4.68436582]
[1764818940282,0.71,144.91,144.88,4.68436582]
[1764818940587,0.71,144.91,144.88,4.00436582]
[1764818944389,0.71,144.91,144.88,2.56049365]
[1764818945091,0.71,144.91,144.87,7.58273194]
[1764818945285,0.71,144.91,144.88,2.56049365]
[1764818945891,6.90035881,144.92,144.88,6.90219101]
[1764818946072,6.90035881,144.92,144.89,10.84049365]
[1764818946392,7.61035881,144.92,144.89,10.84049365]
[1764818946690,0.71,144.91,144.89,7.6]
[1764818948294,7.61091934,144.91,144.89,7.6]
[1764818948788,0.71,144.9,144.87,7.6]
[1764818950571,7.61174228,144.9,144.87,7.6]
[1764818950994,0.71,144.89,144.87,7.6]
[1764818951990,6.90087648,144.91,144.88,3.24049365]
[1764818952192,0.71,144.9,144.88,2.56049365]
[1764818952395,0.71,144.9,144.87,10.84049365]
[1764818953082,6.90178756,144.89,144.87,7.6]
[1764818953500,0.71,144.88,144.87,7.6]
[1764818953876,7.61178756,144.89,144.87,7.6]
[1764818955192,7.61178756,144.89,144.83,12.86990348]
[1764818955193,3.27049365,144.88,144.83,12.86990348]
[1764818955370,3.27049365,144.88,144.84,7.6]
[1764818955570,3.27049365,144.87,144.84,7.6]
[1764818955982,0.71,144.86,144.84,7.6]
[1764818956187,3.27049365,144.86,144.83,9.59940983]
[1764818956407,6.90369347,144.85,144.82,7.6]
[1764818956699,7.61369347,144.85,144.82,7.6]
[1764818956907,0.71,144.84,144.82,7.6]
[1764818957606,3.27049365,144.84,144.79,9.69940983]
[1764818957789,2.56049365,144.83,144.79,17.29940983]
[1764818957970,0.71,144.82,144.79,17.29940983]
[1764818958491,7.61517679,144.82,144.79,17.29940983]
[1764818959504,7.61517679,144.82,144.79,7.7]
[1764818959505,0.71,144.81,144.79,7.7]
[1764818962317,7.61584519,144.81,144.79,7.7]
[1764818962897,0.71,144.8,144.79,0.1]
[1764818966122,7.61607734,144.8,144.79,0.1]
[1764818966914,10.17657099,144.8,144.79,0.1]
[1764818967819,7.61607734,144.8,144.79,0.1]
[1764818968003,10.17657099,144.8,144.79,0.1]
[1764818973930,10.17616534,144.81,144.79,0.1]
[1764818974327,9.46616534,144.81,144.79,0.1]
[1764818974531,0.71,144.8,144.79,0.1]
[1764818975323,3.27049365,144.8,144.79,0.1]
[1764818976836,7.61607734,144.8,144.79,0.1]
[1764818978824,10.17657099,144.8,144.79,0.1]
[1764818982145,7.61607734,144.8,144.79,0.1]
[1764818982335,10.17657099,144.8,144.79,0.1]
[1764818986044,6.9057018,144.81,144.79,0.76]
[1764818986230,7.6257018,144.81,144.79,0.1]
[1764818986549,0.72,144.8,144.79,0.1]
[1764818987219,9.46619545,144.81,144.79,0.1]
[1764818987428,10.18619545,144.81,144.79,0.1]
[1764818989021,9.46619545,144.81,144.79,0.1]
[1764818989227,10.18619545,144.81,144.79,0.1]
[1764818989440,3.28049365,144.8,144.79,0.1]
[1764818991041,10.18657099,144.8,144.79,0.1]
[1764818995152,7.62607734,144.8,144.79,0.1]
[1764818995340,6.90607734,144.8,144.79,0.1]
[1764818996153,6.90560044,144.81,144.79,0.1]
[1764818996634,7.62560044,144.81,144.79,0.1]
[1764818998426,10.18609409,144.81,144.79,0.1]
[1764818998849,20.54411159,144.82,144.79,0.1]
[1764818999140,0.72,144.81,144.79,0.1]
[1764819000054,10.18656164,144.81,144.79,0.1]
[1764819000463,9.46656164,144.81,144.79,0.76]
[1764819000655,10.18656164,144.81,144.79,0.1]
[1764819003673,3.28049365,144.8,144.79,0.1]
[1764819005534,10.18657099,144.8,144.79,0.1]
[1764819005755,25.11880892,144.79,144.78,0.1]
[1764819006060,25.11880892,144.79,144.73,0.1]
[1764819006061,16.308864,144.77,144.73,0.1]
[1764819006259,2.56049365,144.74,144.73,0.1]
[1764819006453,4.0111977,144.74,144.73,0.1]
[1764819006642,4.7311977,144.74,144.73,0.1]
[1764819007650,11.64013786,144.74,144.73,0.1]
[1764819012444,10.92013786,144.74,144.73,0.1]
[1764819015166,11.60013786,144.74,144.73,0.1]
[1764819019958,10.92013786,144.74,144.73,0.1]
[1764819020871,10.92013786,144.74,144.73,0.79]
[1764819021071,10.91982119,144.75,144.73,0.79]
[1764819021270,6.90804904,144.76,144.73,0.79]
[1764819021856,17.94797376,144.78,144.73,19.33060991]
[1764819021857,0.68,144.78,144.73,19.33060991]
[1764819022176,4.6911977,144.78,144.74,7.62]
[1764819022357,4.0111977,144.77,144.74,8.31]
[1764819023452,6.90798563,144.76,144.74,8.31]
[1764819024179,6.90798563,144.76,144.75,0.69]
[1764819024482,6.90766466,144.77,144.75,0.69]
[1764819025058,11.59886236,144.77,144.74,7.62]
[1764819025258,10.91886236,144.77,144.74,8.31]
[1764819025564,10.91886236,144.77,144.74,0.69]
[1764819025764,11.59886236,144.77,144.74,8.31]
[1764819025979,10.91886236,144.77,144.74,8.31]
[1764819026475,4.0111977,144.76,144.73,0.79]
[1764819026656,4.0111977,144.76,144.73,8.41]
[1764819027777,28.18763351,144.77,144.73,8.41]
[1764819027975,6.90846286,144.75,144.73,7.72]
[1764819028280,6.90846286,144.75,144.73,8.41]
[1764819029255,6.90846286,144.75,144.73,0.79]
[1764819029592,6.90846286,144.75,144.73,8.41]
[1764819034465,4.6911977,144.74,144.73,0.1]
[1764819036681,11.60013786,144.74,144.73,0.1]
[1764819039737,16.308864,144.72,144.71,0.1]
[1764819039904,20.3200617,144.72,144.71,0.1]
[1764819040073,20.9900617,144.72,144.71,0.1]
[1764819041768,27.89995666,144.72,144.71,0.1]
[1764819044190,27.94995666,144.72,144.71,0.1]
[1764819049087,100.21531154,144.72,144.65,8.9594057]
[1764819049396,4.0111977,144.66,144.62,3.33359711]
[1764819049594,20.3200617,144.68,144.63,4.7111977]
[1764819049796,16.308864,144.68,144.64,4.0111977]
[1764819049989,16.308864,144.68,144.65,0.7]
[1764819050384,0.72,144.7,144.65,4.7111977]
[1764819050584,4.0111977,144.7,144.65,4.7111977]
[1764819050791,4.0111977,144.7,144.66,0.7]
[1764819051091,6.91132766,144.69,144.66,0.7]
[1764819051289,10.92252536,144.69,144.66,0.7]
[1764819051688,6.91132766,144.69,144.66,0.7]
[1764819052082,6.91132766,144.69,144.66,8.32]
[1764819052281,6.91132766,144.69,144.67,0.7]
[1764819053000,17.27472423,144.73,144.67,4.7111977]
[1764819053216,6.90989496,144.72,144.69,4.0111977]
[1764819053503,6.90989496,144.72,144.67,7.61227245]
[1764819053504,6.90989496,144.72,144.68,0.7]
[1764819054405,6.90989496,144.72,144.68,4.7111977]
[1764819054804,6.90989496,144.72,144.69,0.7]
[1764819057804,6.90989496,144.72,144.69,8.32]
[1764819058488,0.72,144.71,144.69,7.62]
[1764819058689,24.90463238,144.72,144.69,7.62]
[1764819058905,24.90463238,144.72,144.69,8.32]
[1764819060220,0.72,144.71,144.69,7.62]
[1764819060400,28.19583008,144.72,144.67,4.0111977]
[1764819060588,28.91583008,144.72,144.68,8.32]
[1764819061320,24.90463238,144.72,144.69,0.7]
[1764819061488,6.90941753,144.73,144.69,4.7111977]
[1764819061817,7.62941753,144.73,144.69,4.7111977]
[1764819062118,7.62941753,144.73,144.7,0.7]
[1764819062609,24.90296137,144.73,144.7,0.7]
[1764819062789,24.90296137,144.73,144.69,0.7]
[1764819063112,4.7311977,144.72,144.67,0.7]
[1764819063412,4.7311977,144.72,144.68,7.62]
[1764819063792,6.91037246,144.71,144.68,8.32]
[1764819064605,6.91037246,144.71,144.69,0.7]
[1764819065192,7.63037246,144.71,144.68,7.62]
[1764819065610,7.63037246,144.71,144.68,8.32]
[1764819066397,7.63037246,144.71,144.68,0.7]
[1764819066596,24.90630363,144.71,144.68,8.32]
[1764819068324,6.91037246,144.71,144.69,0.7]
[1764819068813,6.91000942,144.72,144.69,0.7]
[1764819069121,36.86831411,144.75,144.7,2.5679599]
[1764819069314,0.72,144.74,144.7,2.5679599]
[1764819069512,6.90894016,144.74,144.71,3.2679599]
[1764819069724,20.55698457,144.77,144.72,10.1879599]
[1764819069905,17.26676517,144.79,144.74,2.5679599]
[1764819070115,6.90607734,144.8,144.77,2.5679599]
[1764819070313,6.90607734,144.8,144.77,10.1879599]
[1764819070502,6.90607734,144.8,144.77,8.32]
[1764819070701,35.23939982,144.85,144.78,0.7]
[1764819071008,35.23939982,144.85,144.79,2.5679599]
[1764819071009,19.5968239,144.84,144.79,2.5679599]
[1764819071213,41.1934594,144.84,144.79,2.5679599]
[1764819071424,0.72,144.83,144.79,3.2679599]
[1764819071627,6.90417011,144.84,144.8,0.7]
[1764819071830,6.90417011,144.84,144.81,10.1879599]
[1764819072001,6.90375752,144.85,144.82,2.5679599]
[1764819072335,6.90375752,144.85,144.81,10.1879599]
[1764819072539,6.90375752,144.85,144.82,0.66]
[1764819074102,6.90321689,144.86,144.82,0.66]
[1764819074303,7.56321689,144.86,144.82,0.66]
[1764819074611,6.90321689,144.86,144.83,7.62]
[1764819074923,0.66,144.85,144.83,7.62]
[1764819075120,9.47117679,144.86,144.82,8.28]
[1764819075318,10.13117679,144.86,144.82,0.66]
[1764819075519,10.13117679,144.86,144.83,7.62]
[1764819075715,26.72921903,144.86,144.83,7.62]
[1764819075911,0.66,144.85,144.83,7.62]
[1764819076111,6.90417011,144.84,144.83,7.62]
[1764819076429,6.90417011,144.84,144.82,7.62]
[1764819076607,7.56417011,144.84,144.82,7.62]
[1764819077122,6.90417011,144.84,144.82,7.62]
[1764819078429,6.90417011,144.84,144.82,8.28]
[1764819078918,6.90417011,144.84,144.82,7.62]
[1764819079226,18.8768239,144.87,144.82,10.1879599]
[1764819079418,6.90178756,144.89,144.84,2.5679599]
[1764819079629,6.90178756,144.89,144.85,3.2279599]
[1764819079816,6.90178756,144.89,144.86,7.62]
[1764819080126,6.90178756,144.89,144.86,8.28]
[1764819080500,34.22225054,144.9,144.86,7.62]
[1764819080700,33.56225054,144.9,144.87,0.66]
[1764819080924,33.56225054,144.9,144.86,7.62]
[1764819081134,36.79021044,144.9,144.86,8.28]
[1764819081319,20.48134644,144.9,144.86,8.28]
[1764819081715,27.38265768,144.9,144.86,8.28]
[1764819082207,3.2279599,144.89,144.86,7.62]
[1764819083227,3.2279599,144.89,144.86,7.6]
[1764819084019,10.13022384,144.88,144.81,16.308864]
[1764819084224,10.13022384,144.88,144.82,10.8279599]
[1764819084526,0.66,144.87,144.82,10.8279599]
[1764819085129,0.66,144.87,144.83,3.2279599]
[1764819085726,9.47117679,144.86,144.82,8.26]
[1764819086030,6.90321689,144.86,144.82,10.8279599]
[1764819086342,7.56321689,144.86,144.82,10.8279599]
[1764819086708,7.56321689,144.86,144.82,10.1679599]
[1764819087023,6.90321689,144.86,144.83,0.66]
[1764819087231,7.56321689,144.86,144.83,0.66]
[1764819089010,7.56321689,144.86,144.84,7.6]
[1764819090517,3.2279599,144.85,144.77,9.24467954]
[1764819090707,2.5679599,144.81,144.78,8.26]
[1764819090907,2.5679599,144.79,144.72,21.39183373]
[1764819091135,3.2279599,144.8,144.74,2.5679599]
[1764819091637,3.2279599,144.8,144.74,0.66]
[1764819091638,2.5679599,144.79,144.74,0.66]
[1764819091837,3.2279599,144.79,144.74,0.66]
[1764819092036,2.5679599,144.8,144.74,3.2279599]
[1764819092222,16.308864,144.81,144.76,2.5679599]
[1764819092424,16.308864,144.81,144.77,10.1679599]
[1764819092622,23.21471247,144.81,144.77,10.1679599]
[1764819092829,23.21471247,144.81,144.78,0.66]
[1764819096137,25.78267237,144.81,144.77,7.6]
[1764819096352,2.5679599,144.79,144.73,3.2279599]
[1764819096515,2.5679599,144.77,144.74,7.6]
[1764819096936,3.2279599,144.77,144.74,7.6]
[1764819097527,3.2279599,144.76,144.72,0.66]
[1764819097727,3.2279599,144.76,144.73,7.6]
[1764819098229,6.90820021,144.76,144.73,7.6]
[1764819098435,6.90820021,144.76,144.74,0.66]
[1764819098638,9.47530657,144.78,144.74,0.66]
[1764819098839,10.13530657,144.78,144.74,0.66]
[1764819099620,7.56734667,144.78,144.74,0.66]
[1764819100640,10.13530657,144.78,144.74,0.66]
[1764819102757,7.56734667,144.78,144.74,0.66]
[1764819102925,7.56734667,144.78,144.74,3.2279599]
[1764819103639,7.56734667,144.78,144.74,10.13687329]
[1764819103838,7.56734667,144.78,144.75,0.69]
[1764819103839,0.67,144.78,144.75,0.69]
[1764819104153,0.67,144.78,144.74,10.16687329]
[1764819104343,0.67,144.78,144.75,2.5679599]
[1764819104853,7.57707579,144.78,144.74,3.2579599]
[1764819105433,24.84465418,144.78,144.73,10.1679599]
[1764819105632,3.2379599,144.77,144.73,7.6]
[1764819106150,3.2379599,144.76,144.73,7.6]
[1764819106351,2.5679599,144.75,144.73,7.6]
[1764819106559,0.67,144.74,144.73,7.6]
[1764819107453,7.57896687,144.74,144.72,7.62]
[1764819107865,0.67,144.73,144.72,7.62]
[1764819108234,6.90896687,144.74,144.72,7.62]
[1764819108434,7.57896687,144.74,144.72,7.62]
[1764819114849,0.67,144.73,144.69,6.91118186]
[1764819115052,0.67,144.73,144.71,2.5679599]
[1764819115548,7.57896687,144.74,144.71,2.5679599]
[1764819118061,7.57896687,144.74,144.7,10.8779599]
[1764819118263,0.67,144.73,144.7,7.62]
[1764819118454,0.67,144.73,144.7,10.1879599]
[1764819118661,0.67,144.73,144.71,2.5679599]
[1764819119167,16.308864,144.72,144.66,6.91261327]
[1764819119346,6.90896687,144.74,144.71,2.5679599]
[1764819119663,7.57896687,144.74,144.7,10.1879599]
[1764819119858,7.57896687,144.74,144.7,10.8779599]
[1764819120164,6.90896687,144.74,144.7,14.53072054]
[1764819120465,6.90761907,144.77,144.71,0.69]
[1764819120669,6.90761907,144.77,144.75,2.5679599]
[1764819120836,6.90689214,144.79,144.76,10.1879599]
[1764819121039,6.90689214,144.79,144.77,10.1879599]
[1764819121255,6.90689214,144.79,144.77,7.62]
[1764819121470,7.57689214,144.79,144.77,7.62]
[1764819121779,0.67,144.82,144.78,3.2579599]
[1764819122066,6.90564906,144.81,144.78,3.2579599]
[1764819122671,7.57564906,144.81,144.78,3.2579599]
[1764819123042,7.57564906,144.81,144.77,7.62]
[1764819123245,0.67,144.8,144.77,7.62]
[1764819124144,3.2379599,144.8,144.77,7.62]
[1764819124337,6.90655432,144.79,144.77,7.62]
[1764819124558,7.57655432,144.79,144.77,7.62]
[1764819124843,0.67,144.78,144.77,7.62]
[1764819125470,0.67,144.78,144.74,7.62]
[1764819125471,3.2379599,144.78,144.74,7.62]
[1764819125666,2.5679599,144.77,144.74,7.62]
[1764819125974,3.2379599,144.77,144.74,7.62]
[1764819126142,0.67,144.76,144.74,7.62]
[1764819126660,3.2379599,144.78,144.74,7.62]
[1764819127049,0.67,144.77,144.74,7.62]
[1764819127445,2.5679599,144.76,144.74,7.62]
[1764819127865,0.67,144.75,144.74,7.62]
[1764819128368,24.17632902,144.77,144.74,7.62]
[1764819128680,6.90755787,144.77,144.74,8.31]
[1764819128979,6.90755787,144.77,144.74,12.31947674]
[1764819129959,7.57709428,144.78,144.74,12.31947674]
[1764819130348,0.67,144.77,144.74,7.62]
[1764819130575,6.90798563,144.76,144.73,7.62]
[1764819131075,7.57798563,144.76,144.73,7.62]
[1764819134794,0.71,144.75,144.73,7.62]
[1764819135582,4.71947674,144.75,144.72,7.62]
[1764819136798,6.90894016,144.74,144.72,7.62]
[1764819137207,7.61894016,144.74,144.72,7.62]
[1764819137412,0.71,144.73,144.72,7.62]
[1764819139172,7.61941753,144.73,144.72,7.62]
[1764819139773,11.62889427,144.73,144.68,7.62]
[1764819140092,4.71947674,144.72,144.68,8.29]
[1764819141289,6.91037246,144.71,144.68,8.29]
[1764819141814,7.62037246,144.71,144.68,8.29]
[1764819145101,0.71,144.73,144.69,0.67]
[1764819145301,0.71,144.73,144.69,4.67947674]
[1764819145477,6.90894016,144.74,144.69,4.67947674]
[1764819145804,7.61798563,144.76,144.7,0.67]
[1764819146100,0.71,144.75,144.71,7.62]
[1764819146301,0.71,144.75,144.71,11.62947674]
[1764819146486,0.71,144.75,144.71,12.29947674]
[1764819146682,0.71,144.75,144.71,7.62]
[1764819146683,4.71947674,144.75,144.71,7.62]
[1764819147100,0.71,144.74,144.71,7.62]
[1764819147479,4.71947674,144.74,144.71,7.62]
[1764819147879,0.71,144.73,144.71,7.62]
[1764819148089,7.6196678,144.73,144.71,7.62]
[1764819150209,0.71,144.72,144.71,7.62]
[1764819151010,7.61989496,144.72,144.71,7.62]
[1764819153316,0.71,144.72,144.71,7.62]
[1764819154726,7.61989496,144.72,144.71,7.62]
[1764819157696,6.90941753,144.73,144.71,7.62]
[1764819158192,7.61941753,144.73,144.71,7.62]
[1764819158802,6.90894016,144.74,144.71,7.62]
[1764819159114,0.71,144.73,144.71,7.62]
[1764819159695,6.90860637,144.75,144.72,0.68]
[1764819160015,4.00947674,144.73,144.71,7.62]
[1764819160527,0.68,144.72,144.71,7.62]
[1764819160900,7.58989496,144.72,144.71,7.62]
[1764819161529,6.90989496,144.72,144.71,7.62]
[1764819162115,6.90925474,144.74,144.71,7.62]
[1764819162321,7.58925474,144.74,144.71,7.62]
[1764819162513,7.58925474,144.74,144.71,8.3]
[1764819162913,7.58925474,144.74,144.71,7.62]
[1764819165723,0.68,144.74,144.71,7.62]
[1764819165929,6.9085978,144.75,144.72,0.68]
[1764819166237,7.6085978,144.75,144.71,8.3]
[1764819166438,0.7,144.74,144.71,8.3]
[1764819167363,7.60906643,144.74,144.71,8.3]
[1764819167529,7.60906643,144.74,144.71,7.62]
[1764819167729,6.90862608,144.75,144.71,8.3]
[1764819167934,0.7,144.74,144.71,8.3]
[1764819168428,6.90815462,144.76,144.72,0.68]
[1764819168636,6.90815462,144.76,144.73,4.00947674]
[1764819168819,7.60815462,144.76,144.74,7.62]
[1764819169017,6.90815462,144.76,144.74,7.62]
[1764819169232,0.7,144.77,144.74,7.62]